[Event "Bremer Silvester Open-B 2024"]
[Site "Bremen"]
[Date "2024.12.27"]
[Round "1.2"]
[White "Kamps, Manuel"]
[Black "Supplieth, Peter"]
[Result "0-1"]
[ECO "B03"]
[WhiteElo "1684"]
[BlackElo "1890"]
[Annotator "NA RC"]
[PlyCount "146"]
[EventDate "2024.12.16"]
[EventType "swiss"]
[EventCountry "GER"]
[SourceTitle "playchess.com"]
[Source "ChessBase"]
[SourceQuality "1"]
[TimeControl "5400+30"]

1. e4 {[%emt 0:00:03]} Nf6 {[%emt 0:00:07]} 2. e5 {[%emt 0:00:04]} Nd5 {[%emt 0:00:05]} 3. c4 {[%emt 0:00:05]} Nb6 {[%emt 0:00:05]} 4. d4 {[%emt 0:00:05]} d6 {[%emt 0:00:06]} 5. f4 {[%emt 0:00:05]} dxe5 {[%emt 0:00:06]} 6. fxe5 {[%emt 0:00:05]} Nc6 {[%emt 0:00:07] 6...Nc6 has lost popularity.} 7. Be3 {[%emt 0:00:06]} e6 {[%emt 0:00:05] B03: Alekhine's Defence: Four Pawns Attack.} 8. Nc3 {[%emt 0:01:53]} Be7 {[%emt 0:00:31]} 9. Nf3 {[%emt 0:01:23]} O-O {[%emt 0:01:03]} 10. Be2 {[%emt 0:00:24]} f6 {[%emt 0:01:42]} 11. exf6 {[%emt 0:05:45]} Bxf6 {[%emt 0:00:11]} 12. O-O {[%emt 0:00:09]} e5 {[%emt 0:19:10]} 13. d5 {[%emt 0:06:42]} Ne7 {[%emt 0:01:43]} 14. Ne4 {[%emt 0:02:42]} Nf5 $146 {[%emt 0:08:11]} ({Predecessor:} 14... Bf5 15. Nc5 Qc8 16. Ng5 Bxg5 17. Bxg5 Ng6 18. Be3 Nd7 19. g4 Nxc5 20. gxf5 Nf4 21. Bxc5 Qxf5 {1-0 Flores,D (2180)-Nicolas,R Chivilcoy CLP op 1997 (2)}) 15. Bc5 {[%emt 0:03:23]} Be7 {[%emt 0:11:05]} 16. Bxb6 {[%emt 0:06:10]} axb6 {[%emt 0:00:15]} 17. Nxe5 {[%emt 0:00:07]} Ne3 {[%emt 0:08:56]} 18. Rxf8+ {[%emt 0:00:26]} Qxf8 {[%emt 0:00:06]} 19. Qd3 $2 {[%emt 0:03:23]} ({White should play} 19. Qb3 $1 $15 Qf4 20. Bf3 Qxe5 21. d6 Bxd6 22. Nxd6) 19... Qf4 {[%emt 0:01:22]} 20. Nf3 {[%emt 0:04:00]} Bf5 {[%emt 0:03:30]} 21. Nfd2 {[%emt 0:01:10]} Bc5 {[%emt 0:01:47]} 22. Kh1 {[%emt 0:05:04]} Re8 {[%emt 0:06:22]} 23. Bf3 {[%emt 0:03:23]} Bb4 $2 {[%emt 0:07:53]} (23... Rxe4 $19 {has better winning chances.} 24. Nxe4 Bd6) 24. g3 $2 {[%emt 0:55:53]} (24. d6 $17 Bxd2 (24... Bxd6 $2 25. g3 $19) (24... cxd6 25. Qb3 $15) 25. Qxd2 Bxe4 26. Bxe4 Qxe4 27. dxc7 Nxc4 (27... Qxc4 28. Rc1 $11) 28. Qd8) 24... Bxe4 {[%emt 0:04:06]} 25. Bxe4 {[%emt 0:00:00]} Qf2 $19 {[%emt 0:00:20]} 26. Nf1 {[%emt 0:00:00]} Ng4 {[%emt 0:07:22]} 27. Qf3 {[%emt 0:00:00]} Bc5 {[%emt 0:00:40]} 28. Bxh7+ {[%emt 0:00:00]} Kxh7 {[%emt 0:00:12]} 29. Qxf2 {[%emt 0:00:00]} Nxf2+ {[%emt 0:01:37]} 30. Kg2 {[%emt 0:00:00]} Re2 {[%emt 0:00:49]} 31. b3 {[%emt 0:00:00]} Nd3+ {[%emt 0:04:37]} 32. Kf3 {[%emt 0:00:00]} Re1 {[%emt 0:03:08]} 33. Rxe1 {[%emt 0:00:00]} Nxe1+ {[%emt 0:00:05]} 34. Ke4 {[%emt 0:00:00]} Kg6 {[%emt 0:00:18]} 35. Nd2 {[%emt 0:00:00]} Kf7 {[%emt 0:00:44]} 36. Kf5 {[%emt 0:00:00]} Nd3 {[%emt 0:00:41]} 37. Ne4 {[%emt 0:00:00]} g6+ {[%emt 0:00:41]} 38. Kg4 {[%emt 0:00:00]} Nc1 {[%emt 0:01:32]} 39. Ng5+ {[%emt 0:00:00]} Ke7 {[%emt 0:01:14]} 40. Ne6 {[%emt 0:00:00]} Bd6 {[%emt 0:00:19]} 41. Kg5 {[%emt 0:00:00]} Kf7 {[%emt 0:00:14]} 42. Nd8+ {[%emt 0:00:00]} Kg7 {[%emt 0:00:09]} 43. Nxb7 {[%emt 0:00:00]} Be7+ {[%emt 0:00:33]} 44. Kf4 {[%emt 0:00:00]} Kf6 {[%emt 0:00:27]} 45. h4 {[%emt 0:00:00]} Nxa2 {[%emt 0:01:08]} 46. g4 {[%emt 0:00:00]} Nc1 {[%emt 0:00:25]} 47. g5+ {[%emt 0:00:00]} Kf7 {[%emt 0:00:05]} 48. Ke5 {[%emt 0:00:00]} Nxb3 {[%emt 0:01:18]} 49. d6 {[%emt 0:00:00]} cxd6+ {[%emt 0:00:28]} 50. Nxd6+ {[%emt 0:00:00]} Bxd6+ {[%emt 0:00:14]} 51. Kxd6 {[%emt 0:00:00]} Na5 {[%emt 0:01:46]} 52. Kd5 {[%emt 0:00:00]} Ke7 {[%emt 0:00:48]} 53. c5 {[%emt 0:00:00]} bxc5 {[%emt 0:00:24]} 54. Kxc5 {[%emt 0:00:00]} Nb7+ {[%emt 0:00:05]} 55. Kd5 {[%emt 0:00:00]} Nd6 {[%emt 0:01:54]} 56. Ke5 {[%emt 0:00:00]} Ne8 {[%emt 0:01:10]} 57. Kd5 {[%emt 0:00:00]} Kf7 {[%emt 0:00:34]} 58. Ke5 {[%emt 0:00:00]} Ng7 {[%emt 0:00:06]} 59. Kf4 {[%emt 0:00:00]} Ke6 {[%emt 0:00:24]} 60. Kg4 {[%emt 0:00:00]} Ke5 {[%emt 0:00:15]} 61. Kf3 {[%emt 0:00:00]} Kf5 {[%emt 0:00:32]} 62. Kg3 {[%emt 0:00:00]} Ke4 {[%emt 0:00:20]} 63. Kg4 {[%emt 0:00:00]} Nh5 {[%emt 0:00:22]} 64. Kh3 {[%emt 0:01:01]} Kf3 {[%emt 0:00:05]} 65. Kh2 {[%emt 0:00:09]} Kg4 {[%emt 0:00:06]} 66. Kg2 {[%emt 0:01:12]} Kxh4 {[%emt 0:00:06]} 67. Kh2 {[%emt 0:00:06]} Kxg5 {[%emt 0:00:07]} 68. Kh3 {[%emt 0:00:12]} Kf4 {[%emt 0:01:14]} 69. Kg2 {[%emt 0:00:07]} Kg4 {[%emt 0:00:29]} 70. Kh2 {[%emt 0:00:33]} Kf3 {[%emt 0:00:17]} 71. Kh3 {[%emt 0:00:51]} g5 {[%emt 0:00:12]} 72. Kh2 {[%emt 0:00:09]} g4 {[%emt 0:00:11]} 73. Kg1 {[%emt 0:00:38]} Kg3 {[%emt 0:00:17]} 0-1

[Event "Bremer Silvester Open-B 2024"]
[Site "Bremen"]
[Date "2024.12.27"]
[Round "1.3"]
[White "Dianov, Ilja"]
[Black "Klose, Eli"]
[Result "0-1"]
[ECO "B33"]
[WhiteElo "1861"]
[BlackElo "1669"]
[Annotator "NA RC"]
[PlyCount "42"]
[EventDate "2024.12.16"]
[EventType "swiss"]
[EventCountry "GER"]
[SourceTitle "playchess.com"]
[Source "ChessBase"]
[SourceQuality "1"]
[TimeControl "5400+30"]

1. e4 {[%emt 0:00:03]} c5 {[%emt 0:00:10]} 2. Nf3 {[%emt 0:00:06]} Nc6 {[%emt 0:00:09]} 3. d4 {[%emt 0:00:06]} cxd4 {[%emt 0:00:10]} 4. Nxd4 {[%emt 0:00:06]} Nf6 {[%emt 0:00:11]} 5. Nc3 {[%emt 0:00:22]} e5 {[%emt 0:00:12]} 6. Ndb5 {[%emt 0:04:04]} d6 {[%emt 0:00:26]} 7. Bg5 {[%emt 0:02:35]} a6 {[%emt 0:00:20]} 8. Na3 {[%emt 0:00:13]} b5 {[%emt 0:00:11]} 9. Nd5 {[%emt 0:00:32]} Be7 {[%emt 0:00:14]} 10. Bxf6 {[%emt 0:08:02]} Bxf6 {[%emt 0:00:20]} 11. c3 {[%emt 0:02:10]} Bg5 {[%emt 0:02:09]} 12. Be2 {[%emt 0:00:45]} O-O {[%emt 0:03:25]} 13. O-O {[%emt 0:01:04]} Kh8 {[%emt 0:00:11] B33: Sicilian: Pelikan and Sveshnikov Variations.} 14. Nc2 {[%emt 0:04:47]} f5 {[%emt 0:00:17]} 15. exf5 {[%emt 0:02:39]} Bxf5 {[%emt 0:01:19]} 16. Nce3 {[%emt 0:00:45]} Be6 {[%emt 0:04:08]} 17. Bf3 {[%emt 0:01:35]} a5 {[%emt 0:10:32]} 18. a4 {[%emt 0:06:24]} Rb8 {[%emt 0:01:23]} 19. axb5 {[%emt 0:02:03]} Rb7 $18 {[%emt 1:14:13]} 20. b6 Rxb6 {[%emt 0:00:00]} 21. Nc4 {[%emt 0:03:03]} Rb5 {[%emt 0:00:00]} 0-1

[Event "Bremer Silvester Open-B 2024"]
[Site "Bremen"]
[Date "2024.12.27"]
[Round "1.4"]
[White "Salm, Andreas"]
[Black "Hattenhauer, Klaus"]
[Result "0-1"]
[ECO "B01"]
[WhiteElo "1658"]
[BlackElo "1848"]
[Annotator "NA RC"]
[PlyCount "104"]
[EventDate "2024.12.16"]
[EventType "swiss"]
[EventCountry "GER"]
[SourceTitle "playchess.com"]
[Source "ChessBase"]
[SourceQuality "1"]
[TimeControl "5400+30"]

1. e4 {[%emt 0:00:06]} d5 {[%emt 0:00:10]} 2. exd5 {[%emt 0:00:07]} Qxd5 {[%emt 0:00:11]} 3. Nc3 {[%emt 0:00:09]} Qd8 {[%emt 0:00:19]} 4. d4 {[%emt 0:00:05]} Nf6 {[%emt 0:00:20]} 5. Bb5+ {[%emt 0:00:31]} c6 {[%emt 0:01:06]} 6. Bc4 {[%emt 0:00:43] B01: Scandinavian Defence.} e6 {[%emt 0:01:03]} 7. Nf3 {[%emt 0:00:16]} Bb4 {[%emt 0:01:57]} 8. Bd2 {[%emt 0:00:20]} Nbd7 {[%emt 0:01:46]} 9. a3 {[%emt 0:00:31]} Bd6 {[%emt 0:01:56]} 10. Bg5 {[%emt 0:03:33]} h6 {[%emt 0:00:47]} 11. Bxf6 {[%emt 0:00:11]} Qxf6 {[%emt 0:01:24]} 12. Ne4 {[%emt 0:01:16]} Qe7 {[%emt 0:00:17]} 13. Nxd6+ {[%emt 0:01:41]} Qxd6 {[%emt 0:00:05]} 14. O-O {[%emt 0:01:03]} O-O {[%emt 0:00:12]} 15. c3 {[%emt 0:04:27]} b5 {[%emt 0:00:24]} 16. Bb3 {[%emt 0:00:14]} Bb7 {[%emt 0:02:58]} 17. Bc2 {[%emt 0:01:15]} Nf6 {[%emt 0:00:49]} 18. Qd3 {[%emt 0:04:33]} a5 {[%emt 0:00:45]} 19. Ne5 {[%emt 0:02:52]} Rfd8 {[%emt 0:11:51]} 20. f3 {[%emt 0:17:54]} c5 {[%emt 0:00:48]} 21. Ng4 {[%emt 0:03:07]} Kf8 {[%emt 0:05:14]} 22. Nxf6 {[%emt 0:01:39]} gxf6 {[%emt 0:00:14]} 23. Qe3 {[%emt 0:03:57]} cxd4 {[%emt 0:01:13]} 24. cxd4 {[%emt 0:03:21]} Qxd4 {[%emt 0:00:58]} 25. Qxd4 {[%emt 0:03:01]} Rxd4 {[%emt 0:00:23]} 26. Rad1 {[%emt 0:00:27]} Rad8 {[%emt 0:01:15]} 27. Rxd4 {[%emt 0:01:00]} Rxd4 {[%emt 0:00:16]} 28. Rd1 {[%emt 0:01:44]} Rxd1+ {[%emt 0:01:33]} 29. Bxd1 {[%emt 0:00:01]} b4 {[%emt 0:00:17]} 30. axb4 {[%emt 0:02:16]} axb4 {[%emt 0:00:17]} 31. Kf2 {[%emt 0:00:17]} Ke7 {[%emt 0:00:20]} 32. Ke3 {[%emt 0:00:06]} e5 {[%emt 0:02:33]} 33. Bb3 {[%emt 0:01:26]} f5 {[%emt 0:01:05]} 34. g3 {[%emt 0:02:08]} f6 {[%emt 0:06:29]} 35. Bc2 {[%emt 0:06:42]} Bc8 {[%emt 0:02:00]} 36. Bb3 {[%emt 0:03:04]} Be6 {[%emt 0:06:49]} 37. Bc2 {[%emt 0:02:07]} Kd6 $15 {[%emt 0:02:25]} 38. b3 {[%emt 0:03:53]} Kc5 {[%emt 0:03:31]} 39. Bd1 {[%emt 0:01:09]} Bd5 {[%emt 0:01:48]} 40. Bc2 {[%emt 0:02:03]} Bf7 {[%emt 0:04:19]} 41. Bd1 {[%emt 0:00:50]} Bg6 {[%emt 0:00:21]} 42. f4 {[%emt 0:02:05]} Bf7 {[%emt 0:04:21]} 43. h3 {[%emt 0:05:23]} Bd5 {[%emt 0:08:10]} 44. Bc2 {[%emt 0:02:32]} Kd6 {[%emt 0:02:21]} 45. g4 {[%emt 0:01:54]} exf4+ {[%emt 0:05:50]} 46. Kxf4 {[%emt 0:00:24]} fxg4 {[%emt 0:00:10]} 47. hxg4 {[%emt 0:00:37]} Be6 {[%emt 0:00:52]} 48. Bd1 {[%emt 0:00:42]} Kd5 {[%emt 0:01:00]} 49. Ke3 {[%emt 0:00:31]} Ke5 {[%emt 0:00:25]} 50. Kd3 {[%emt 0:02:32]} Kf4 {[%emt 0:00:15]} 51. Kd4 {[%emt 0:00:24]} Bxg4 {[%emt 0:00:41]} 52. Kc5 {[%emt 0:00:09]} Bxd1 {[%emt 0:00:35]} 0-1

[Event "Bremer Silvester Open-B 2024"]
[Site "Bremen"]
[Date "2024.12.27"]
[Round "1.5"]
[White "Wildt, Alexander"]
[Black "Kandora, Shirley"]
[Result "1-0"]
[ECO "D15"]
[WhiteElo "1845"]
[BlackElo "1616"]
[Annotator "NA RC"]
[PlyCount "93"]
[EventDate "2024.12.16"]
[EventType "swiss"]
[EventCountry "GER"]
[SourceTitle "playchess.com"]
[Source "ChessBase"]
[SourceQuality "1"]
[TimeControl "5400+30"]

1. d4 {[%emt 0:00:03]} d5 {[%emt 0:00:08]} 2. c4 {[%emt 0:00:04]} c6 {[%emt 0:00:46]} 3. Nc3 {[%emt 0:00:08]} Nd7 {[%emt 0:00:35]} 4. Nf3 {[%emt 0:00:09]} Ngf6 {[%emt 0:00:33]} 5. Bf4 {[%emt 0:00:22]} Nb6 {[%emt 0:00:37]} 6. c5 {[%emt 0:00:36] D15: Slav Defence: 4 Nc3 a6 and gambit lines after 4 Nc3 dxc4.} Nc4 {[%emt 0:00:51]} 7. b3 {[%emt 0:02:01]} Nb2 {[%emt 0:00:45]} 8. Qc2 {[%emt 0:00:41]} Ne4 {[%emt 0:02:46]} 9. Qxb2 {[%emt 0:00:19]} Bf5 {[%emt 0:00:56]} 10. e3 {[%emt 0:00:40]} g6 {[%emt 0:02:08]} 11. Be2 {[%emt 0:00:58]} Bg7 {[%emt 0:00:49]} 12. h3 {[%emt 0:00:52]} O-O {[%emt 0:01:59]} 13. g4 {[%emt 0:01:44]} Be6 {[%emt 0:05:21]} 14. Nxe4 {[%emt 0:03:37]} dxe4 {[%emt 0:00:26]} 15. Nd2 {[%emt 0:00:14]} Bd5 {[%emt 0:00:28]} 16. Qc2 {[%emt 0:02:25]} f5 {[%emt 0:01:39]} 17. Nc4 {[%emt 0:00:48]} b5 {[%emt 0:03:30]} 18. Ne5 {[%emt 0:01:01]} Qe8 {[%emt 0:03:05]} 19. g5 {[%emt 0:03:49]} e6 {[%emt 0:04:34]} 20. h4 {[%emt 0:00:51]} Qd8 {[%emt 0:06:30]} 21. O-O-O {[%emt 0:01:25]} Qa5 {[%emt 0:04:33]} 22. h5 {[%emt 0:01:35]} Qa3+ {[%emt 0:01:46]} 23. Qb2 {[%emt 0:01:33]} Qxb2+ {[%emt 0:01:50]} 24. Kxb2 {[%emt 0:00:18]} gxh5 {[%emt 0:01:47]} 25. Rxh5 {[%emt 0:00:36]} a5 {[%emt 0:01:46]} 26. a3 {[%emt 0:00:36]} a4 {[%emt 0:01:20]} 27. b4 {[%emt 0:01:47]} Bb3 {[%emt 0:01:47]} 28. Rdh1 {[%emt 0:00:35]} Rfc8 {[%emt 0:02:48]} 29. Rxh7 {[%emt 0:01:37]} Kf8 {[%emt 0:02:44]} 30. Nd7+ {[%emt 0:00:20]} Kg8 {[%emt 0:00:39]} 31. Nb6 {[%emt 0:00:14]} (31. Be5 $142 Bxe5 32. Nxe5 Rf8 33. Rh8+ Kg7 34. R1h7#) 31... Re8 {[%emt 0:01:40]} 32. Nxa8 {[%emt 0:00:22]} Rxa8 {[%emt 0:00:15]} 33. Be5 {[%emt 0:00:30]} Ra7 {[%emt 0:00:50]} 34. Bh5 {[%emt 0:01:06]} Rb7 {[%emt 0:05:45]} 35. Rxg7+ {[%emt 0:00:33]} Rxg7 {[%emt 0:00:26]} 36. Bxg7 {[%emt 0:00:07]} Kxg7 {[%emt 0:00:08]} 37. Be8 {[%emt 0:00:17]} Kf8 {[%emt 0:00:51]} 38. Bxc6 {[%emt 0:00:21]} Ke7 {[%emt 0:01:03]} 39. Bxb5 {[%emt 0:00:20]} Kd8 {[%emt 0:00:52]} 40. Rh7 {[%emt 0:00:18]} e5 {[%emt 0:00:49]} 41. dxe5 {[%emt 0:00:17]} Bg8 {[%emt 0:01:02]} 42. Rh8 {[%emt 0:00:12]} Ke7 {[%emt 0:00:53]} 43. Rxg8 {[%emt 0:00:09]} Kf7 {[%emt 0:00:08]} 44. c6 {[%emt 0:00:44]} f4 {[%emt 0:00:30]} 45. c7 {[%emt 0:00:24]} fxe3 {[%emt 0:00:50]} 46. c8=Q {[%emt 0:00:27]} e2 {[%emt 0:00:13]} 47. Qe8# {[%emt 0:00:48]} 1-0

[Event "Bremer Silvester Open-B 2024"]
[Site "Bremen"]
[Date "2024.12.27"]
[Round "1.6"]
[White "Yao, Haiyang"]
[Black "Lattreuter, Alexander"]
[Result "1/2-1/2"]
[ECO "B13"]
[WhiteElo "1602"]
[BlackElo "1841"]
[Annotator "NA RC"]
[PlyCount "77"]
[EventDate "2024.12.16"]
[EventType "swiss"]
[EventCountry "GER"]
[SourceTitle "playchess.com"]
[Source "ChessBase"]
[SourceQuality "1"]
[TimeControl "5400+30"]

1. e4 {[%emt 0:00:03]} c6 {[%emt 0:00:04]} 2. d4 {[%emt 0:00:16]} d5 {[%emt 0:00:04]} 3. exd5 {[%emt 0:00:06]} cxd5 {[%emt 0:00:06]} 4. Nf3 {[%emt 0:00:07]} Bg4 {[%emt 0:00:16]} 5. Be2 {[%emt 1:32:28]} Nc6 {[%emt 0:00:07]} 6. Nc3 {[%emt 0:00:00]} e6 {[%emt 0:00:51]} 7. h3 {[%emt 0:00:00] B13: Caro-Kann: Exchange Variation and Panov-Botvinnik Attack.} Bh5 {[%emt 0:00:09]} 8. O-O {[%emt 0:00:00]} Nf6 {[%emt 0:00:36]} 9. Bg5 {[%emt 0:00:00]} Bd6 {[%emt 0:01:42]} 10. Re1 {[%emt 0:00:00]} O-O {[%emt 0:01:28]} 11. Ne5 {[%emt 0:00:00]} Bxe2 {[%emt 0:00:21]} 12. Rxe2 {[%emt 0:00:00]} Be7 {[%emt 0:02:51]} 13. Nxc6 {[%emt 0:00:00]} bxc6 {[%emt 0:00:06]} 14. Qd3 {[%emt 0:00:00]} Rb8 {[%emt 0:01:52]} 15. b3 {[%emt 0:00:00]} h6 {[%emt 0:03:54]} 16. Bf4 {[%emt 0:00:00]} Bd6 {[%emt 0:00:23]} 17. Bxd6 {[%emt 0:06:00]} Qxd6 {[%emt 0:00:10]} 18. Qe3 {[%emt 0:00:00]} Rfc8 {[%emt 0:02:31]} 19. Qe5 {[%emt 0:00:00]} Qxe5 {[%emt 0:00:24]} 20. dxe5 {[%emt 0:00:00]} Nd7 {[%emt 0:00:13]} 21. a3 {[%emt 0:00:00]} c5 {[%emt 0:00:17]} 22. f4 {[%emt 0:00:00]} a5 {[%emt 0:03:13]} 23. Na4 {[%emt 0:00:00]} c4 {[%emt 0:03:02]} 24. Rb1 {[%emt 0:00:00]} Nc5 {[%emt 0:01:03]} 25. Nxc5 {[%emt 0:00:00]} Rxc5 {[%emt 0:00:08]} 26. b4 {[%emt 0:00:00]} c3 {[%emt 0:02:55]} 27. Re3 {[%emt 0:00:00]} d4 {[%emt 0:03:51]} 28. Rd3 {[%emt 0:00:00]} Rc4 {[%emt 0:00:06]} 29. b5 {[%emt 0:00:00]} Kf8 {[%emt 0:02:42]} 30. Kf2 {[%emt 0:00:00]} f5 {[%emt 0:01:09]} 31. Kf3 {[%emt 0:00:00]} Ke7 {[%emt 0:00:40]} 32. g4 {[%emt 0:00:00]} Ra4 {[%emt 0:04:41]} 33. Rbd1 {[%emt 0:00:00]} Rxb5 {[%emt 0:00:49]} 34. Rxd4 {[%emt 0:00:00]} Rxa3 {[%emt 0:00:32]} 35. Rd7+ {[%emt 0:00:00]} Kf8 {[%emt 0:00:06]} 36. Rd8+ {[%emt 0:00:00]} Kf7 {[%emt 0:00:07]} 37. R1d7+ {[%emt 0:00:00]} Kg6 {[%emt 0:00:13]} 38. Rg8 {[%emt 0:00:00]} Kh7 {[%emt 1:05:48]} 39. Rdxg7# {[%emt 0:11:00]} 1/2-1/2

[Event "Bremer Silvester Open-B 2024"]
[Site "Bremen"]
[Date "2024.12.27"]
[Round "1.7"]
[White "Ewers, Christian"]
[Black "Kandora, William"]
[Result "1-0"]
[ECO "C23"]
[WhiteElo "1820"]
[BlackElo "1590"]
[Annotator "NA RC"]
[PlyCount "103"]
[EventDate "2024.12.16"]
[EventType "swiss"]
[EventCountry "GER"]
[SourceTitle "playchess.com"]
[Source "ChessBase"]
[SourceQuality "1"]
[TimeControl "5400+30"]

1. e4 {[%emt 0:00:05]} e5 {[%emt 0:00:04]} 2. Bc4 {[%emt 0:00:12]} Nc6 {[%emt 0:00:28]} 3. d3 {[%emt 0:00:49]} Bc5 {[%emt 0:00:25]} 4. Qg4 {[%emt 0:04:52]} Qf6 {[%emt 0:01:57]} 5. Qg3 {[%emt 0:00:31]} h6 {[%emt 0:02:22]} 6. Nc3 {[%emt 0:01:34] C23: Bishop's Opening: 2...Bc5.} Nge7 {[%emt 0:00:30]} 7. Nge2 {[%emt 0:00:58]} O-O {[%emt 0:01:34]} 8. a3 {[%emt 0:00:39]} Nd4 {[%emt 0:00:35]} 9. Nxd4 {[%emt 0:00:33]} exd4 {[%emt 0:00:39]} 10. Ne2 {[%emt 0:00:33]} Bd6 {[%emt 0:00:23]} 11. f4 {[%emt 0:00:30]} Bc5 {[%emt 0:01:33]} 12. O-O {[%emt 0:00:34]} d6 {[%emt 0:02:19]} 13. b4 {[%emt 0:01:30]} Bb6 {[%emt 0:00:34]} 14. f5 {[%emt 0:00:54]} d5 {[%emt 0:00:45]} 15. e5 {[%emt 0:03:33]} Nxf5 {[%emt 0:07:29]} 16. exf6 {[%emt 0:01:18]} Nxg3 {[%emt 0:00:15]} 17. Nxg3 {[%emt 0:00:33]} dxc4 {[%emt 0:00:10]} 18. fxg7 {[%emt 0:00:40]} Kxg7 {[%emt 0:00:14]} 19. Nh5+ {[%emt 0:01:08]} Kg6 {[%emt 0:01:35]} 20. g4 {[%emt 0:02:00]} cxd3 {[%emt 0:00:55]} 21. cxd3 {[%emt 0:00:12]} Bxg4 {[%emt 0:00:28]} 22. Rf6+ {[%emt 0:00:23]} Kh7 {[%emt 0:00:46]} 23. Rxh6+ {[%emt 0:00:15]} Kg8 {[%emt 0:00:15]} 24. Nf6+ {[%emt 1:18:14]} Kg7 {[%emt 1:16:15]} 25. Nxg4 {[%emt 0:00:00]} Rfe8 {[%emt 0:00:00]} 26. Bg5 {[%emt 0:00:00]} Re6 {[%emt 0:00:00]} 27. Bf6+ {[%emt 0:00:00]} Rxf6 {[%emt 0:00:00]} 28. Rxf6 {[%emt 0:00:00]} Re8 {[%emt 0:00:00]} 29. Raf1 {[%emt 0:00:00]} Re7 {[%emt 0:00:00]} 30. Nh6 {[%emt 0:00:00]} c5 {[%emt 0:00:00]} 31. Rxf7+ {[%emt 0:00:00]} Rxf7 {[%emt 0:00:00]} 32. Nxf7 {[%emt 0:00:00]} cxb4 {[%emt 0:00:00]} 33. axb4 {[%emt 0:00:00]} a5 {[%emt 0:00:00]} 34. bxa5 {[%emt 0:00:00]} Bxa5 {[%emt 0:00:00]} 35. Nd6 {[%emt 0:00:00]} b6 {[%emt 0:00:00]} 36. Nc4 {[%emt 0:00:00]} Bc3 {[%emt 0:00:00]} 37. Nxb6 {[%emt 0:00:00]} Bd2 {[%emt 0:00:00]} 38. Nc4 {[%emt 0:00:00]} Bh6 {[%emt 0:00:00]} 39. Kg2 {[%emt 0:00:00]} Kg6 {[%emt 0:00:00]} 40. Ne5+ {[%emt 0:00:00]} Kg5 {[%emt 0:00:00]} 41. Nf7+ {[%emt 0:00:00]} Kh5 {[%emt 0:00:00]} 42. Nxh6 {[%emt 0:00:00]} Kxh6 {[%emt 0:00:00]} 43. Rf3 {[%emt 0:00:00]} Kg5 {[%emt 0:00:00]} 44. Kg3 {[%emt 0:00:00]} Kg6 {[%emt 0:00:00]} 45. Rf4 {[%emt 0:00:00]} Kg5 {[%emt 0:00:00]} 46. Rxd4 {[%emt 0:00:00]} Kh5 {[%emt 0:00:00]} 47. Rg4 {[%emt 0:00:00]} Kh6 {[%emt 0:00:00]} 48. Kf4 {[%emt 0:00:00]} Kh5 {[%emt 0:00:00]} 49. Kf5 {[%emt 0:00:00]} Kh6 {[%emt 0:00:00]} 50. Kf6 {[%emt 0:00:00]} Kh5 {[%emt 0:00:00]} 51. h3 {[%emt 0:00:00]} Kh6 {[%emt 0:00:00]} 52. Rh4# {[%emt 0:00:00]} 1-0

[Event "Bremer Silvester Open-B 2024"]
[Site "Bremen"]
[Date "2024.12.27"]
[Round "1.8"]
[White "Zastrow, Jan-Christian"]
[Black "Schroeder, Harm"]
[Result "0-1"]
[ECO "C77"]
[WhiteElo "1581"]
[BlackElo "1820"]
[Annotator "NA RC"]
[PlyCount "66"]
[EventDate "2024.12.16"]
[EventType "swiss"]
[EventCountry "GER"]
[SourceTitle "playchess.com"]
[Source "ChessBase"]
[SourceQuality "1"]
[TimeControl "5400+30"]

1. e4 {[%emt 0:00:08]} e5 {[%emt 0:00:17]} 2. Nf3 {[%emt 0:00:20]} Nc6 {[%emt 0:00:07]} 3. Bb5 {[%emt 0:00:35]} a6 {[%emt 0:05:03]} 4. Ba4 {[%emt 0:02:27]} Nf6 {[%emt 0:03:10]} 5. d3 {[%emt 0:00:40]} Bc5 {[%emt 0:01:05]} 6. Bg5 {[%emt 0:01:37] C77: Ruy Lopez: 3...a6 4 Ba4 Nf6, unusual lines.} h6 {[%emt 0:00:21]} 7. Bh4 {[%emt 0:01:22]} d6 {[%emt 0:00:20]} 8. h3 {[%emt 0:01:25]} Bd7 {[%emt 0:00:48]} 9. Nc3 {[%emt 0:01:12]} g5 {[%emt 0:05:18]} 10. Bg3 {[%emt 0:01:16]} Nh5 {[%emt 0:00:42]} 11. Bh2 {[%emt 0:00:53]} Nf4 {[%emt 0:01:27]} 12. Bxf4 {[%emt 0:02:43]} gxf4 {[%emt 0:00:25]} 13. g4 {[%emt 0:03:21]} fxg3 {[%emt 1:17:57]} 14. fxg3 {[%emt 1:19:31]} Nd4 {[%emt 0:00:00]} 15. Bxd7+ {[%emt 0:00:00]} Qxd7 {[%emt 0:00:00]} 16. Nxd4 {[%emt 0:00:00]} Bxd4 {[%emt 0:00:00]} 17. Qf3 {[%emt 0:00:00]} Bxc3+ {[%emt 0:00:00]} 18. bxc3 {[%emt 0:00:00]} O-O-O {[%emt 0:00:00]} 19. g4 {[%emt 0:00:00]} Qc6 {[%emt 0:00:00]} 20. Kd2 {[%emt 0:00:00]} Kb8 {[%emt 0:00:00]} 21. Rhf1 {[%emt 0:00:00]} d5 {[%emt 0:00:00]} 22. Rfe1 {[%emt 0:00:00]} d4 {[%emt 0:00:00]} 23. c4 {[%emt 0:00:00]} Qc5 {[%emt 0:00:00]} 24. Qd1 {[%emt 0:00:00]} Rd6 {[%emt 0:00:00]} (24... h5 $17 25. g5 Qe7) 25. Qc1 {[%emt 0:00:00]} h5 {[%emt 0:00:00]} 26. g5 {[%emt 0:00:00]} Rg6 {[%emt 0:00:00]} 27. h4 {[%emt 0:00:00]} f6 {[%emt 0:00:00]} 28. gxf6 {[%emt 0:00:00]} Rxf6 {[%emt 0:00:00]} 29. Rf1 {[%emt 0:00:00]} Rhf8 {[%emt 0:00:00]} 30. Rxf6 {[%emt 0:00:00]} Rxf6 {[%emt 0:00:00]} 31. Qg1 {[%emt 0:00:00]} Qf8 {[%emt 0:00:00]} 32. Re1 {[%emt 0:00:00]} Rf2+ {[%emt 0:00:00]} 33. Re2 {[%emt 0:00:00]} Qb4+ {[%emt 0:00:00]} 0-1